fUSD/lending_fUSD_20250612
["ID","MTS","AMOUNT","RATE_DAILY","PERIOD"]
[365532268,1749768633556,-500.0,0.00016999,2]
[365532269,1749768633566,-150.0,0.00016999,2]
[365532270,1749768633577,-500.0,0.00016999,2]
[365532271,1749768633587,-2040.0,0.00016999,2]
[365532272,1749768633597,-150.0,0.00016999,2]
[365532273,1749768633608,-150.0,0.00016999,2]
[365532274,1749768633618,-150.0,0.00016999,2]
[365532275,1749768633628,-500.0,0.00016999,2]
[365532276,1749768633638,-500.0,0.00016999,2]
[365532277,1749768633648,-500.0,0.00016999,2]
[365532278,1749768633658,-150.0,0.00016999,2]
[365532279,1749768633668,-150.0,0.00016999,2]
[365532280,1749768633677,-206.02997179,0.00016999,2]
[365532281,1749768633687,-300.0,0.00016999,2]
[365532282,1749768633698,-150.0,0.00016999,2]
[365532283,1749768633708,-300.0,0.00016999,2]
[365532284,1749768633718,-150.0,0.00016999,2]
[365532285,1749768633728,-150.0,0.00016999,2]
[365532286,1749768633738,-500.0,0.00016999,2]
[365532287,1749768633748,-195.0,0.00016999,2]
[365532288,1749768633758,-185.35887436,0.00016999,2]
[365532289,1749768633768,-300.0,0.00016999,2]
[365532290,1749768633778,-450.0,0.00016999,2]
[365532291,1749768633788,-532.0,0.00017,2]
[365532292,1749768633799,-833.43051846,0.00017,3]
[365532293,1749768633808,-84417.98890902,0.00017,2]
[365532294,1749768633831,-78344.97056485,0.00017,2]
[365532297,1749768637985,-1508.43861749,0.00017,2]
[365532298,1749768638102,-5914.13398554,0.00017,2]
[365532299,1749768638114,-2642.94945025,0.00017,2]
[365532300,1749768638125,-7000.0,0.00017,2]
[365532301,1749768638138,-643.79999965,0.00017,2]
[365532329,1749768640226,-89200.41924833,0.00017,2]
[365532330,1749768640238,-39438.1009514,0.00017,2]
[365532331,1749768640249,-1178735.68896023,0.00017,2]
[365532332,1749768640258,-151.0,0.00017,2]
[365532333,1749768640267,-599.37476395,0.00017,2]
[365532334,1749768640276,-151.0,0.00017,2]
[365532335,1749768640285,-151.0,0.00017,2]
[365532336,1749768640294,-151.0,0.00017,2]
[365532337,1749768640304,-151.0,0.00017,2]
[365532338,1749768640314,-151.0,0.00017,2]
[365532339,1749768640324,-267.192744,0.00017,2]
[365532340,1749768640335,-267.192744,0.00017,2]
[365532341,1749768640346,-267.192744,0.00017,2]
[365532342,1749768640361,-267.192744,0.00017,2]
[365532343,1749768640371,-151.0,0.00017,2]
[365532344,1749768640381,-218.151525,0.00017,2]
[365532345,1749768640391,-218.151525,0.00017,2]
[365532346,1749768640401,-218.151525,0.00017,2]
[365532347,1749768640412,-218.151525,0.00017,2]
[365532348,1749768640421,-151.0,0.00017,2]
[365532349,1749768640431,-151.0,0.00017,2]
[365532350,1749768640440,-151.0,0.00017,2]
[365532351,1749768640450,-151.0,0.00017,2]
[365532352,1749768640460,-151.0,0.00017,2]
[365532353,1749768640469,-250.0,0.00017,2]
[365532354,1749768640479,-554.19018,0.00017,2]
[365532355,1749768640488,-554.19018,0.00017,2]
[365532356,1749768640498,-554.19018,0.00017,2]
[365532357,1749768640508,-554.19018,0.00017,2]
[365532358,1749768640518,-151.0,0.00017,2]
[365532359,1749768640529,-151.0,0.00017,2]
[365532360,1749768640539,-151.0,0.00017,2]
[365532361,1749768640550,-151.0,0.00017,2]
[365532362,1749768640563,-151.0,0.00017,2]
[365532363,1749768640572,-151.0,0.00017,2]
[365532364,1749768640582,-151.0,0.00017,2]
[365532365,1749768640592,-151.0,0.00017,2]
[365532366,1749768640601,-151.0,0.00017,2]
[365532367,1749768640611,-151.0,0.00017,2]
[365532368,1749768640620,-272.27411,0.00017,2]
[365532369,1749768640630,-272.27411,0.00017,2]
[365532370,1749768640640,-272.27411,0.00017,2]
[365532371,1749768640650,-272.27411,0.00017,2]
[365532372,1749768640659,-151.0,0.00017,2]
[365532373,1749768640669,-151.0,0.00017,2]
[365532374,1749768640679,-151.0,0.00017,2]
[365532375,1749768640689,-151.0,0.00017,2]
[365532376,1749768640699,-151.0,0.00017,2]
[365532377,1749768640709,-151.0,0.00017,2]
[365532378,1749768640719,-152.138055,0.00017,2]
[365532379,1749768640728,-194.322799,0.00017,2]
[365532380,1749768640740,-194.322799,0.00017,2]
[365532381,1749768640750,-194.322799,0.00017,2]
[365532382,1749768640760,-194.322799,0.00017,2]
[365532383,1749768640769,-151.0,0.00017,2]
[365532384,1749768640778,-151.0,0.00017,2]
[365532385,1749768640788,-190.449912,0.00017,2]
[365532386,1749768640798,-190.449912,0.00017,2]
[365532387,1749768640808,-190.449912,0.00017,2]
[365532388,1749768640817,-190.449912,0.00017,2]
[365532389,1749768640827,-151.0,0.00017,2]
[365532390,1749768640837,-151.0,0.00017,2]
[365532391,1749768640847,-530.261974,0.00017,2]
[365532392,1749768640858,-530.261974,0.00017,2]
[365532393,1749768640867,-530.261974,0.00017,2]
[365532394,1749768640877,-530.261974,0.00017,2]
[365532395,1749768640887,-151.0,0.00017,2]
[365532396,1749768640896,-151.0,0.00017,2]
[365532397,1749768640906,-151.0,0.00017,2]
[365532398,1749768640915,-151.0,0.00017,2]
[365532399,1749768640924,-185.515535,0.00017,2]
[365532400,1749768640934,-185.515535,0.00017,2]
[365532401,1749768640943,-185.515535,0.00017,2]
[365532402,1749768640953,-185.515535,0.00017,2]
[365532403,1749768640962,-151.0,0.00017,2]
[365532404,1749768640972,-151.0,0.00017,2]
[365532405,1749768640981,-151.0,0.00017,2]
[365532406,1749768640990,-151.0,0.00017,2]
[365532407,1749768641000,-151.0,0.00017,2]
[365532408,1749768641009,-151.0,0.00017,2]
[365532409,1749768641018,-329.881769,0.00017,2]
[365532410,1749768641028,-329.881769,0.00017,2]
[365532411,1749768641037,-151.0,0.00017,2]
[365532412,1749768641047,-329.881769,0.00017,2]
[365532413,1749768641057,-329.881769,0.00017,2]
[365532414,1749768641067,-150.0,0.00017,2]
[365532415,1749768641077,-150.0,0.00017,2]
[365532416,1749768641087,-150.0,0.00017,2]
[365532417,1749768641101,-151.0,0.00017,2]
[365532418,1749768641110,-151.0,0.00017,2]
[365532419,1749768641120,-150.0,0.00017,2]
[365532420,1749768641129,-151.0,0.00017,2]
[365532421,1749768641140,-151.0,0.00017,2]
[365532422,1749768641149,-150.0,0.00017,2]
[365532423,1749768641159,-151.0,0.00017,2]
[365532424,1749768641170,-151.0,0.00017,2]
[365532425,1749768641180,-151.0,0.00017,2]
[365532426,1749768641189,-150.0,0.00017,2]
[365532427,1749768641199,-150.0,0.00017,2]
[365532428,1749768641209,-151.0,0.00017,2]
[365532429,1749768641218,-151.0,0.00017,2]
[365532430,1749768641227,-150.0,0.00017,2]
[365532431,1749768641237,-491.410121,0.00017,2]
[365532432,1749768641246,-491.410121,0.00017,2]
[365532433,1749768641255,-491.410121,0.00017,2]
[365532434,1749768641265,-491.410121,0.00017,2]
[365532435,1749768641274,-217.98218,0.00017,2]
[365532436,1749768641286,-217.98218,0.00017,2]
[365532437,1749768641296,-288.953512,0.00017,2]
[365532438,1749768641308,-288.953512,0.00017,2]
[365532439,1749768641317,-217.98218,0.00017,2]
[365532440,1749768641327,-217.98218,0.00017,2]
[365532441,1749768641336,-288.953512,0.00017,2]
[365532442,1749768641347,-288.953512,0.00017,2]
[365532443,1749768641357,-151.0,0.00017,2]
[365532444,1749768641367,-151.0,0.00017,2]
[365532445,1749768641376,-240.66182245,0.00017,2]
[365532446,1749768641386,-352464.62683408,0.00017,2]
[365532447,1749768641401,-405.27546822,0.00017,2]
[365532448,1749768642976,-500.0,0.00016893,2]
[365532449,1749768642986,-752.71985348,0.00017,2]
[365532455,1749768643052,-316.12544027,0.00016893,2]
[365532456,1749768643062,-500.0,0.00016893,2]
[365532458,1749768643072,-200.0,0.00016893,2]
[365532460,1749768643081,-500.0,0.00016893,2]
[365532462,1749768643092,-500.0,0.00016893,2]
[365532464,1749768643102,-444.4724332,0.00016893,2]
[365532466,1749768643112,-242.82050188,0.00016893,2]
[365532468,1749768643121,-310.01587483,0.00016893,2]
[365532470,1749768643131,-500.0,0.00016893,2]
[365532472,1749768643142,-2331.14042503,0.00017,2]
[365532482,1749768643270,-370.69619918,0.00017,2]
[365532483,1749768643290,-2065.75314866,0.00017,3]
[365532484,1749768643300,-18494.15904794,0.00017,2]
[365532485,1749768643315,-571.42083,0.00017,2]
[365532599,1749768645905,-840.0,0.00017,3]
[365532600,1749768646036,-1049.0,0.00017,3]
[365532601,1749768646048,-83524.55603,0.00017,3]
[365532602,1749768646060,-125392.42867838,0.00017,3]
[365532603,1749768646168,-545.54999796,0.00017,3]
[365532604,1749768646180,-10590.0,0.00017,3]
[365532605,1749768646209,-600.0,0.00017,3]
[365532957,1749768691440,200.0,8.32e-06,2]
[365532958,1749768699593,1000.0,8.49e-06,2]
[365532959,1749768702060,200.0,0.00015505,2]
[365532960,1749768738190,618.75,0.00014164,2]
[365532961,1749768787830,2483.2,0.00015896,2]
[365532962,1749768861004,500.0,0.00015794,2]
[365532963,1749768905387,5167.1,0.00016,2]
[365532964,1749768907037,5167.1,0.00016,2]
[365532965,1749768909863,238.03182159,0.00016,2]
[365532966,1749768909887,4929.06817841,0.00016,2]
[365532967,1749768910486,5167.1,0.00016,2]
[365532968,1749768912130,-151.0,0.00016384,2]
[365532969,1749768912155,-69.44091444,0.00016402,2]
[365532970,1749768913767,1000.0,0.00015741,2]
[365532972,1749768955237,296.86,0.00013699,2]
[365532974,1749769068989,273.85,0.00015659,2]
[365532975,1749769092351,202.0,0.0001591,2]
[365532976,1749769150316,661.96,0.00015593,2]
[365532977,1749769224515,346.29,0.000246,120]
[365532978,1749769489972,942.13,0.00015569,2]
[365532979,1749769491029,-202.0,0.0001607,2]
[365532980,1749769494844,200.0,0.00015576,7]
[365532981,1749769505686,202.0,0.00016,2]
[365532982,1749769505711,8131.78,0.00016,2]
[365532983,1749769507596,8333.78,0.00016,2]
[365532984,1749769576335,740.36,0.00015588,2]
[365532985,1749769695292,340.0,0.00016,2]
[365532986,1749769744896,326.9,0.00015596,2]
[365532987,1749769758375,267.51,0.00015585,2]
[365532988,1749769783975,587.81,0.0001366,2]
[365532989,1749769784025,587.81,0.00015923,2]
[365532990,1749769801552,5000.0,0.00016001,2]
[365532991,1749769809739,5000.0,0.00016001,2]
[365532992,1749769812310,202.0,0.0001507,2]
[365532993,1749769818845,5000.0,0.00016001,2]
[365532994,1749769829311,5000.0,0.00016001,2]
[365532995,1749769829604,152.0,0.00015846,3]
[365533001,1749769832177,-165.7,0.00016064,2]
[365533002,1749769832187,-151.0,0.00016228,2]
[365533003,1749769832196,-152.42,0.00016249,2]
[365533004,1749769832205,-169.94,0.00016249,2]
[365533005,1749769832215,-151.26,0.00016249,2]
[365533006,1749769832224,-152.6,0.00016249,2]
[365533007,1749769832235,-152.95,0.00016252,2]
[365533008,1749769832245,-153.71361904,0.00016259,2]
[365533009,1749769832293,-147.24638096,0.00016259,2]
[365533010,1749769832302,-305.05,0.00016259,2]
[365533011,1749769832311,-207.4,0.00016262,2]
[365533012,1749769832320,-304.57,0.00016264,2]
[365533013,1749769832330,-300.52,0.00016264,2]
[365533014,1749769832340,-253.52,0.00016264,2]
[365533015,1749769832349,-250.89,0.00016264,2]
[365533016,1749769832359,-250.67,0.00016264,2]
[365533017,1749769832369,-301.09,0.00016265,2]
[365533018,1749769832378,-1200.0,0.00016271,2]
[365533019,1749769832388,-300.0,0.00016271,2]
[365533020,1749769832398,-246.36,0.00016272,2]
[365533021,1749769832408,-252.69,0.00016272,2]
[365533022,1749769832417,-250.1,0.00016272,2]
[365533023,1749769832427,-254.58,0.00016272,2]
[365533024,1749769832437,-302.94,0.00016274,2]
[365533025,1749769832446,-247.24,0.00016284,2]
[365533026,1749769832456,-250.73,0.00016284,2]
[365533027,1749769832465,-248.49,0.00016284,2]
[365533028,1749769832478,-249.32,0.00016284,2]
[365533030,1749769832488,-202.0,0.00016284,3]
[365533032,1749769832497,-303.79,0.00016286,2]
[365533034,1749769832507,-303.21,0.00016286,2]
[365533036,1749769832517,-245.39,0.00016307,2]
[365533038,1749769832527,-247.12,0.00016307,2]
[365533040,1749769832537,-252.65,0.00016307,2]
[365533042,1749769832549,-252.62,0.00016307,2]
[365533044,1749769832558,-249.14,0.00016307,2]
[365533046,1749769832568,-300.35,0.00016309,2]
[365533048,1749769832577,-302.53,0.00016309,2]
[365533050,1749769832589,-251.76,0.00016343,2]
[365533052,1749769832598,-252.81,0.00016343,2]
[365533054,1749769832608,-250.33,0.00016343,2]
[365533055,1749769832620,-252.47,0.00016343,2]
[365533056,1749769832630,-247.61,0.00016343,2]
[365533057,1749769832641,-300.3,0.00016346,2]
[365533058,1749769832650,-151.0,0.0001639,2]
[365533059,1749769832660,-151.0,0.0001639,2]
[365533060,1749769832669,-151.0,0.0001639,2]
[365533061,1749769832679,-151.0,0.0001639,2]
[365533062,1749769832688,-250.26,0.000164,2]
[365533063,1749769832697,-248.97,0.000164,2]
[365533064,1749769832707,-249.19,0.000164,2]
[365533065,1749769832716,-303.82,0.000164,2]
[365533066,1749769832725,-254.9,0.000164,2]
[365533067,1749769832737,-251.12,0.000164,2]
[365533068,1749769832746,-250.33,0.000164,2]
[365533070,1749769832755,-300.91,0.000164,2]
[365533073,1749769832765,-247.3,0.000164,2]
[365533074,1749769832775,-254.25,0.000164,2]
[365533076,1749769832784,-252.26,0.000164,2]
[365533078,1749769832794,-252.86,0.000164,2]
[365533080,1749769832803,-300.77,0.000164,2]
[365533082,1749769832813,-302.63,0.000164,2]
[365533084,1749769832822,-249.6,0.00016402,2]
[365533086,1749769832831,-302.43,0.00016402,2]
[365533087,1749769832841,-252.74,0.00016402,2]
[365533089,1749769832850,-248.02,0.00016402,2]
[365533091,1749769832859,-247.28,0.00016402,2]
[365533093,1749769832868,-245.11,0.00016403,2]
[365533095,1749769832878,-245.94,0.00016403,2]
[365533097,1749769832887,-251.82,0.00016403,2]
[365533099,1749769832897,-250.81,0.00016403,2]
[365533101,1749769832906,-251.21,0.00016403,2]
[365533103,1749769832916,-304.3,0.00016403,2]
[365533105,1749769832925,-247.64,0.00016403,2]
[365533108,1749769832934,-247.6,0.00016403,2]
[365533111,1749769832943,-302.82,0.00016403,2]
[365533113,1749769832952,-250.16,0.00016403,2]
[365533115,1749769832962,-246.83,0.00016403,2]
[365533117,1749769832972,-249.37,0.00016403,2]
[365533119,1749769832981,-300.33,0.00016403,2]
[365533121,1749769832992,-251.42,0.00016403,2]
[365533126,1749769833339,-246.52,0.00016403,2]
[365533127,1749769833349,-249.22,0.00016403,2]
[365533128,1749769833359,-303.59,0.00016403,2]
[365533129,1749769833368,-251.47,0.00016403,2]
[365533130,1749769833378,-252.16,0.00016403,2]
[365533131,1749769833387,-254.95,0.00016403,2]
[365533132,1749769833397,-305.66,0.00016403,2]
[365533133,1749769833406,-245.31,0.00016403,2]
[365533134,1749769833415,-249.34,0.00016403,2]
[365533135,1749769833425,-245.78,0.00016403,2]
[365533136,1749769833434,-300.48,0.00016403,2]
[365533137,1749769833444,-246.88,0.00016403,2]
[365533138,1749769833454,-253.33,0.00016403,2]
[365533139,1749769833463,-251.45,0.00016403,2]
[365533140,1749769833472,-245.8,0.00016403,2]
[365533141,1749769833482,-245.27,0.00016403,2]
[365533142,1749769833492,-302.25,0.00016403,2]
[365533143,1749769833502,-305.58,0.00016403,2]
[365533144,1749769833512,-248.89,0.00016403,2]
[365533145,1749769833521,-246.18,0.00016403,2]
[365533146,1749769833531,-248.45,0.00016403,2]
[365533147,1749769833543,-247.46,0.00016403,2]
[365533148,1749769833553,-303.85,0.00016404,2]
[365533149,1749769833563,-253.22,0.00016406,2]
[365533150,1749769833573,-246.83,0.00016406,2]
[365533151,1749769833583,-251.8,0.00016406,2]
[365533152,1749769833594,-248.41,0.00016406,2]
[365533153,1749769833603,-303.09,0.00016409,2]
[365533154,1749769833612,-305.22,0.00016409,2]
[365533155,1749769833622,-304.62,0.00016418,2]
[365533156,1749769833632,-250.62,0.00016467,2]
[365533157,1749769833642,-253.1,0.00016623,2]
[365533158,1749769833652,-250.6,0.00016623,2]
[365533159,1749769833662,-252.94,0.00016623,2]
[365533160,1749769833671,-247.53,0.00016623,2]
[365533161,1749769833680,-248.61,0.00016623,2]
[365533162,1749769833690,-300.18,0.00016636,2]
[365533163,1749769833699,-810.678059,0.0001666,2]
[365533164,1749769833708,-546.10844395,0.00016762,2]
[365533165,1749769833719,-867.9924602,0.00016765,2]
[365533166,1749769833729,-840.70654173,0.00016773,2]
[365533167,1749769833743,-534.29345827,0.00016773,2]
[365533168,1749769833753,-1000.0,0.000168,2]
[365533169,1749769833763,-354.07,0.000168,2]
[365533170,1749769833774,-150.0,0.000168,2]
[365533171,1749769833783,-163.37,0.000168,2]
[365533172,1749769833794,-150.0,0.000168,2]
[365533173,1749769833804,-300.39,0.000168,2]
[365533174,1749769833814,-139.50365313,0.000168,2]
[365533175,1749769833826,-201.87634687,0.000168,2]
[365533176,1749769834044,-1163.98,0.000168,2]
[365533177,1749769834054,-327.84365303,0.000168,2]
[365533178,1749769834066,-26.66634697,0.000168,2]
[365533179,1749769834076,-163.37,0.000168,2]
[365533180,1749769834087,-300.0,0.000168,2]
[365533181,1749769834096,-170.73,0.000168,2]
[365533182,1749769834106,-1163.98,0.000168,2]
[365533183,1749769834116,-796.87,0.000168,2]
[365533184,1749769834125,-393.83,0.000168,2]
[365533185,1749769834134,-326.58,0.000168,2]
[365533186,1749769834144,-300.0,0.000168,2]
[365533187,1749769834154,-1163.98,0.000168,2]
[365533188,1749769834163,-170.73,0.000168,2]
[365533189,1749769834173,-796.87,0.000168,2]
[365533190,1749769834183,-170.73,0.000168,2]
[365533191,1749769834193,-402.16365311,0.000168,2]
[365533192,1749769834240,-761.81634689,0.000168,2]
[365533193,1749769834250,-354.6,0.000168,2]
[365533194,1749769834259,-200.33,0.000168,2]
[365533195,1749769834270,-1163.98,0.000168,2]
[365533196,1749769834280,-170.73,0.000168,2]
[365533197,1749769834289,-354.6,0.000168,2]
[365533198,1749769834299,-245.11,0.00016812,2]
[365533199,1749769834309,-248.24,0.00016812,2]
[365533200,1749769834318,-302.96,0.00016812,2]
[365533201,1749769834327,-250.97,0.00016812,2]
[365533202,1749769834337,-254.37,0.00016812,2]
[365533203,1749769834346,-250.34,0.00016812,2]
[365533204,1749769834356,-304.47,0.00016812,2]
[365533205,1749769834365,-833.43051846,0.00016825,2]
[365533206,1749769834375,-324.0,0.00016857,2]
[365533207,1749769834385,-451.96957002,0.00016883,2]
[365533208,1749769834394,-168.0,0.00016889,2]
[365533209,1749769834404,-100.86484261,0.00016897,2]
[365533210,1749769834567,-285.71773869,0.00016897,2]
[365533211,1749769834693,-594.4151086,0.00016899,2]
[365533212,1749769834705,-2024.14165359,0.00016899,2]
[365533213,1749769834716,-791.7,0.00016899,2]
[365533214,1749769834735,-1434.56306935,0.00016899,2]
[365533215,1749769834746,-172.35354572,0.000169,2]
[365533216,1749769834756,-35007.2614,0.000169,2]
[365533217,1749769834765,-160.83468592,0.000169,2]
[365533218,1749769834775,-1163.98,0.000169,2]
[365533219,1749769834785,-354.6,0.000169,2]
[365533220,1749769834794,-772.56,0.000169,2]
[365533221,1749769834804,-49988.18858752,0.000169,2]
[365533222,1749769834813,-566.691,0.000169,2]
[365533223,1749769834822,-7066.0,0.00016907,2]
[365533224,1749769834832,-853.0,0.00016907,2]
[365533225,1749769834841,-884.0,0.00016907,2]
[365533226,1749769834850,-1177.0,0.0001694,2]
[365533227,1749769834859,-300.0,0.00016949,2]
[365533228,1749769834868,-4844.81983151,0.00016954,2]
[365533229,1749769834878,-500.0,0.00016973,2]
[365533230,1749769834888,-509.00793203,0.00016973,2]
[365533231,1749769834897,-500.0,0.00016973,2]
[365533232,1749769834906,-500.0,0.00016973,2]
[365533233,1749769834915,-500.0,0.00016973,2]
[365533234,1749769834925,-500.0,0.00016973,2]
[365533235,1749769834934,-500.0,0.00016973,2]
[365533236,1749769834943,-621.89343269,0.00016973,2]
[365533237,1749769834952,-500.0,0.00016973,2]
[365533238,1749769834962,-402.34,0.00016985,2]
[365533239,1749769834972,-402.34,0.00016986,2]
[365533240,1749769834981,-402.34,0.00016986,2]
[365533241,1749769834991,-402.34,0.00016987,2]
[365533242,1749769835001,-402.34,0.00016989,2]
[365533243,1749769835010,-354.6,0.00016993,2]
[365533244,1749769835020,-622.06,0.00016995,2]
[365533245,1749769835029,-6538.13,0.00016995,2]
[365533246,1749769835038,-490.0,0.00016995,2]
[365533247,1749769835047,-1484.08,0.00016995,2]
[365533248,1749769835057,-403.19544298,0.00016995,2]
[365533249,1749769835066,-490.0,0.00016995,2]
[365533250,1749769835076,-490.0,0.00016995,2]
[365533251,1749769835086,-3000.35,0.00016995,2]
[365533252,1749769835097,-1835.36,0.00016995,2]
[365533253,1749769835107,-490.0,0.00016995,2]
[365533254,1749769835116,-588.53,0.00016995,2]
[365533255,1749769835128,-490.0,0.00016995,2]
[365533256,1749769835138,-2491.36,0.00016995,2]
[365533257,1749769835147,-490.0,0.00016995,2]
[365533258,1749769835157,-204.98045576,0.00016995,2]
[365533259,1749769835166,-490.0,0.00016995,2]
[365533260,1749769835176,-1481.03,0.00016995,2]
[365533261,1749769835187,-490.0,0.00016995,2]
[365533262,1749769835197,-490.0,0.00016995,2]
[365533263,1749769835209,-10645.31,0.00016995,2]
[365533264,1749769835219,-490.0,0.00016995,2]
[365533265,1749769835230,-413.30438747,0.00016995,2]
[365533266,1749769835241,-1025.26,0.00016995,2]
[365533267,1749769835251,-2653.94,0.00016995,2]
[365533268,1749769835260,-1325.37,0.00016995,2]
[365533269,1749769835270,-1055.28,0.00016995,2]
[365533270,1749769835279,-490.0,0.00016995,2]
[365533271,1749769835288,-490.0,0.00016995,2]
[365533272,1749769835298,-490.0,0.00016995,2]
[365533273,1749769835307,-490.0,0.00016995,2]
[365533274,1749769835316,-907.61,0.00016995,2]
[365533275,1749769835326,-490.0,0.00016995,2]
[365533276,1749769835336,-490.0,0.00016995,2]
[365533277,1749769835346,-1000.0,0.00016995,2]
[365533278,1749769835355,-490.0,0.00016995,2]
[365533279,1749769835364,-708.77,0.00016995,2]
[365533280,1749769835374,-1497.91,0.00016995,2]
[365533281,1749769835383,-490.0,0.00016995,2]
[365533282,1749769835392,-460.98443253,0.00016995,2]
[365533283,1749769835402,-490.0,0.00016995,2]
[365533284,1749769835411,-490.0,0.00016995,2]
[365533285,1749769835420,-2776.52,0.00016995,2]
[365533286,1749769835429,-502.17975722,0.00016995,2]
[365533287,1749769835439,-1636.18,0.00016995,2]
[365533288,1749769835459,-1761.89,0.00016995,2]
[365533289,1749769835469,-2314.54,0.00016995,2]
[365533290,1749769835479,-5396.59,0.00016995,2]
[365533291,1749769835488,-500.0,0.00016995,2]
[365533292,1749769835498,-156.47328238,0.00016995,2]
[365533293,1749769835509,-500.0,0.00016995,2]
[365533294,1749769835519,-500.0,0.00016995,2]
[365533295,1749769835529,-500.0,0.00016995,2]
[365533296,1749769835540,-1076.3454378,0.00016996,2]
[365533297,1749769835551,-74592.068022,0.00016996,2]
[365533298,1749769835561,-308.7122778,0.00016996,2]
[365533299,1749769835572,-490.0,0.00016996,2]
[365533300,1749769835582,-490.0,0.00016996,2]
[365533301,1749769835593,-502.42193498,0.00016996,2]
[365533302,1749769835603,-2219.7853695,0.00016996,2]
[365533303,1749769835613,-19755.83,0.00016997,2]
[365533304,1749769835624,-39999.323188,0.00016997,2]
[365533305,1749769835634,-1055.28,0.00016998,2]
[365533306,1749769835644,-1055.28,0.00016998,2]
[365533307,1749769835654,-490.0,0.00016999,2]
[365533308,1749769835664,-490.0,0.00016999,2]
[365533309,1749769835674,-460.71634872,0.00016999,2]
[365533310,1749769835683,-528.34430347,0.00016999,2]
[365533311,1749769835693,-490.0,0.00016999,2]
[365533312,1749769835703,-1194.75,0.00016999,2]
[365533313,1749769835714,-378.54338212,0.00016999,2]
[365533314,1749769835723,-490.0,0.00016999,2]
[365533315,1749769835735,-490.0,0.00016999,2]
[365533316,1749769835746,-490.0,0.00016999,2]
[365533317,1749769835756,-490.0,0.00016999,2]
[365533318,1749769835765,-490.0,0.00016999,2]
[365533319,1749769835775,-490.0,0.00016999,2]
[365533320,1749769835785,-490.0,0.00016999,2]
[365533321,1749769835794,-426.26760919,0.00016999,2]
[365533322,1749769835805,-708.68,0.00016999,2]
[365533323,1749769835814,-490.0,0.00016999,2]
[365533324,1749769835824,-4533.82,0.00016999,2]
[365533325,1749769835833,-586.01398209,0.00016999,2]
[365533326,1749769835843,-490.0,0.00016999,2]
[365533327,1749769835853,-504.81,0.00016999,2]
[365533328,1749769835862,-490.0,0.00016999,2]
[365533329,1749769835872,-490.0,0.00016999,2]
[365533330,1749769835881,-500.0,0.00016999,2]
[365533331,1749769835891,-500.0,0.00016999,2]
[365533332,1749769835900,-490.0,0.00016999,2]
[365533333,1749769835910,-500.0,0.00016999,2]